[Event "Titled Tuesday Blitz January 10 Early 2023"]
[White "Szpar, Milosz"]
[Black "Samaganova, Aleksandra"]
[WhiteFideId "1184989"]
[BlackFideId "13800221"]
[WhiteElo "2447"]
[BlackElo "1856"]
[Result "1-0"]
[Round "04"]
[TimeControl "180+2"]
[Date "2023.01.10"]
[WhiteClock "0:00:37"]
[BlackClock "0:00:02"]

1. e4 {[%clk 0:03:00]}  c5 {[%clk 0:02:59]} 2. Nf3 {[%clk 0:03:00]}  e6 {[%clk 0:02:59]} 3. d4 {[%clk 0:03:01]}  cxd4 {[%clk 0:03:00]} 4. Nxd4 {[%clk 0:03:02]}  a6 {[%clk 0:03:00]} 5. c4 {[%clk 0:03:02]}  Qc7 {[%clk 0:03:01]} 6. a3 {[%clk 0:03:00]}  Nf6 {[%clk 0:03:01]} 7. Nc3 {[%clk 0:03:01]}  b6 {[%clk 0:03:00]} 8. Be3 {[%clk 0:03:02]}  Bb7 {[%clk 0:03:00]} 9. f3 {[%clk 0:03:02]}  d6 {[%clk 0:03:00]} 10. Be2 {[%clk 0:03:03]}  Nbd7 {[%clk 0:03:01]} 11. O-O {[%clk 0:03:03]}  Be7 {[%clk 0:03:01]} 12. Qd2 {[%clk 0:03:02]}  Rc8 {[%clk 0:03:01]} 13. Rfc1 {[%clk 0:03:03]}  O-O {[%clk 0:03:01]} 14. b4 {[%clk 0:03:02]}  Qb8 {[%clk 0:03:01]} 15. Kh1 {[%clk 0:02:58]}  Rfe8 {[%clk 0:03:00]} 16. Rab1 {[%clk 0:02:56]}  Bd8 {[%clk 0:02:53]} 17. Rc2 {[%clk 0:02:51]}  Bc7 {[%clk 0:02:53]} 18. Bg1 {[%clk 0:02:51]}  d5 {[%clk 0:02:45]} 19. cxd5 {[%clk 0:02:47]}  exd5 {[%clk 0:02:44]} 20. exd5 {[%clk 0:02:47]}  Bf4 {[%clk 0:02:41]} 21. Qd1 {[%clk 0:02:43]}  Qe5 {[%clk 0:02:03]} 22. Nc6 {[%clk 0:02:39]}  Bxc6 {[%clk 0:01:57]} 23. dxc6 {[%clk 0:02:39]}  Rxc6 {[%clk 0:01:57]} 24. Rb3 {[%clk 0:01:51]}  Qh5 {[%clk 0:01:30]} 25. Nd5 {[%clk 0:01:36]}  Rd6 {[%clk 0:00:45]} 26. Nxf6+ {[%clk 0:01:30]}  Nxf6 {[%clk 0:00:42]} 27. Rd3 {[%clk 0:01:31]}  Rde6 {[%clk 0:00:41]} 28. Rd8 {[%clk 0:01:27]}  h6 {[%clk 0:00:24]} 29. Rcc8 {[%clk 0:01:25]}  Qe5 {[%clk 0:00:14]} 30. Rxe8+ {[%clk 0:01:23]}  Rxe8 {[%clk 0:00:15]} 31. Rxe8+ {[%clk 0:01:23]}  Qxe8 {[%clk 0:00:15]} 32. Bxb6 {[%clk 0:01:19]}  Bxh2 {[%clk 0:00:13]} 33. Qd8 {[%clk 0:01:15]}  Qxd8 {[%clk 0:00:05]} 34. Bxd8 {[%clk 0:01:16]}  Be5 {[%clk 0:00:05]} 35. Bxa6 {[%clk 0:01:16]}  Bb2 {[%clk 0:00:05]} 36. a4 {[%clk 0:01:16]}  Nd5 {[%clk 0:00:05]} 37. b5 {[%clk 0:01:16]}  Nc3 {[%clk 0:00:05]} 38. a5 {[%clk 0:01:14]}  Ba3 {[%clk 0:00:04]} 39. Bc7 {[%clk 0:01:08]}  Bb4 {[%clk 0:00:03]} 40. Bd8 {[%clk 0:00:38]}  Nd5 {[%clk 0:00:02]} 41. b6 {[%clk 0:00:36]}  Bxa5 {[%clk 0:00:02]} 42. b7 {[%clk 0:00:36]}  Bc7 {[%clk 0:00:01]} 43. Bxc7 {[%clk 0:00:36]}  Nxc7 {[%clk 0:00:02]} 44. b8=Q+ {[%clk 0:00:37]} 1-0


[Site "https://www.chess.com"]

[Event "Titled Tuesday Blitz January 10 Early 2023"]
[White "Begmuratov, Khumoyun"]
[Black "Arencibia Monduy, Antonio"]
[WhiteFideId "14210207"]
[BlackFideId "3507939"]
[WhiteElo "2387"]
[BlackElo "2122"]
[Result "1-0"]
[Round "04"]
[TimeControl "180+2"]
[Date "2023.01.10"]
[WhiteClock "0:00:34"]
[BlackClock "0:00:02"]

1. e4 {[%clk 0:03:00]}  e6 {[%clk 0:02:59]} 2. d3 {[%clk 0:02:58]}  d5 {[%clk 0:02:59]} 3. Nd2 {[%clk 0:02:59]}  Nf6 {[%clk 0:02:58]} 4. Ngf3 {[%clk 0:02:59]}  dxe4 {[%clk 0:02:58]} 5. Nxe4 {[%clk 0:02:57]}  Nxe4 {[%clk 0:02:58]} 6. dxe4 {[%clk 0:02:58]}  Qxd1+ {[%clk 0:02:58]} 7. Kxd1 {[%clk 0:02:59]}  Bc5 {[%clk 0:02:58]} 8. Ke1 {[%clk 0:03:00]}  Nc6 {[%clk 0:02:54]} 9. c3 {[%clk 0:03:00]}  e5 {[%clk 0:02:52]} 10. Bb5 {[%clk 0:02:59]}  f6 {[%clk 0:02:52]} 11. Ke2 {[%clk 0:02:53]}  Bd7 {[%clk 0:02:50]} 12. Be3 {[%clk 0:02:53]}  Bxe3 {[%clk 0:02:50]} 13. Kxe3 {[%clk 0:02:54]}  O-O-O {[%clk 0:02:50]} 14. Rad1 {[%clk 0:02:53]}  a6 {[%clk 0:02:50]} 15. Bc4 {[%clk 0:02:52]}  Na5 {[%clk 0:02:46]} 16. Be2 {[%clk 0:02:48]}  Be6 {[%clk 0:02:45]} 17. b3 {[%clk 0:02:47]}  c5 {[%clk 0:02:18]} 18. Nd2 {[%clk 0:02:35]}  Kc7 {[%clk 0:02:14]} 19. g3 {[%clk 0:02:29]}  b5 {[%clk 0:02:07]} 20. f4 {[%clk 0:02:26]}  Rd7 {[%clk 0:01:57]} 21. fxe5 {[%clk 0:02:21]}  fxe5 {[%clk 0:01:57]} 22. Nf3 {[%clk 0:02:21]}  Nc6 {[%clk 0:01:57]} 23. Ng5 {[%clk 0:02:20]}  Re7 {[%clk 0:01:37]} 24. Rhf1 {[%clk 0:02:15]}  h6 {[%clk 0:01:27]} 25. Nxe6+ {[%clk 0:02:13]}  Rxe6 {[%clk 0:01:28]} 26. Rd5 {[%clk 0:01:57]}  Kb6 {[%clk 0:01:28]} 27. Rf7 {[%clk 0:01:54]}  b4 {[%clk 0:00:44]} 28. cxb4 {[%clk 0:01:35]}  Nxb4 {[%clk 0:00:44]} 29. Rdd7 {[%clk 0:01:35]}  Nxa2 {[%clk 0:00:29]} 30. Bc4 {[%clk 0:01:28]}  Rg6 {[%clk 0:00:15]} 31. Rfe7 {[%clk 0:01:17]}  Nb4 {[%clk 0:00:13]} 32. Rxe5 {[%clk 0:01:13]}  Rf8 {[%clk 0:00:13]} 33. Ree7 {[%clk 0:01:07]}  Rgf6 {[%clk 0:00:12]} 34. Rb7+ {[%clk 0:00:48]}  Ka5 {[%clk 0:00:12]} 35. Re5 {[%clk 0:00:49]}  Rc8 {[%clk 0:00:03]} 36. Rxg7 {[%clk 0:00:43]}  Nc2+ {[%clk 0:00:04]} 37. Kd2 {[%clk 0:00:42]}  Nd4 {[%clk 0:00:04]} 38. Rd5 {[%clk 0:00:40]}  Rf2+ {[%clk 0:00:04]} 39. Kd1 {[%clk 0:00:35]}  Rcf8 {[%clk 0:00:03]} 40. Rb7 {[%clk 0:00:35]}  R8f6 {[%clk 0:00:02]} 41. Rxc5+ {[%clk 0:00:34]} 1-0


[Site "https://www.chess.com"]

[Event "Titled Tuesday Blitz January 10 Early 2023"]
[White "marik_spb"]
[Black "Yelisieiev, Yevhenii"]
[BlackFideId "14139642"]
[WhiteElo "2432"]
[BlackElo "2418"]
[Result "1-0"]
[Round "04"]
[TimeControl "180+2"]
[Date "2023.01.10"]
[WhiteClock "0:00:11"]
[BlackClock "0:00:10"]

1. d4 {[%clk 0:02:58]}  d6 {[%clk 0:02:57]} 2. c4 {[%clk 0:02:56]}  e5 {[%clk 0:02:57]} 3. dxe5 {[%clk 0:02:56]}  dxe5 {[%clk 0:02:57]} 4. Qxd8+ {[%clk 0:02:57]}  Kxd8 {[%clk 0:02:58]} 5. g3 {[%clk 0:02:56]}  Be6 {[%clk 0:02:54]} 6. b3 {[%clk 0:02:56]}  Nd7 {[%clk 0:02:51]} 7. Bg2 {[%clk 0:02:55]}  c6 {[%clk 0:02:51]} 8. Nf3 {[%clk 0:02:55]}  f6 {[%clk 0:02:51]} 9. O-O {[%clk 0:02:55]}  Kc7 {[%clk 0:02:46]} 10. Nc3 {[%clk 0:02:51]}  Ne7 {[%clk 0:02:39]} 11. Rd1 {[%clk 0:02:50]}  Rd8 {[%clk 0:02:32]} 12. Ne4 {[%clk 0:02:45]}  h6 {[%clk 0:02:24]} 13. Bb2 {[%clk 0:02:32]}  Nc8 {[%clk 0:02:02]} 14. Nh4 {[%clk 0:02:13]}  Ne7 {[%clk 0:01:43]} 15. Rd2 {[%clk 0:01:20]}  g5 {[%clk 0:01:29]} 16. Nxf6 {[%clk 0:00:52]}  gxh4 {[%clk 0:00:59]} 17. Rxd7+ {[%clk 0:00:27]}  Bxd7 {[%clk 0:00:47]} 18. Bxe5+ {[%clk 0:00:27]}  Kb6 {[%clk 0:00:42]} 19. Nxd7+ {[%clk 0:00:27]}  Rxd7 {[%clk 0:00:41]} 20. Bxh8 {[%clk 0:00:28]}  hxg3 {[%clk 0:00:40]} 21. hxg3 {[%clk 0:00:27]}  Ng6 {[%clk 0:00:35]} 22. Bc3 {[%clk 0:00:26]}  a5 {[%clk 0:00:33]} 23. Be4 {[%clk 0:00:23]}  Ne7 {[%clk 0:00:31]} 24. Bc2 {[%clk 0:00:20]}  Nc8 {[%clk 0:00:29]} 25. Rd1 {[%clk 0:00:20]}  Rxd1+ {[%clk 0:00:28]} 26. Bxd1 {[%clk 0:00:21]}  Bc5 {[%clk 0:00:28]} 27. Kg2 {[%clk 0:00:20]}  Ne7 {[%clk 0:00:27]} 28. e4 {[%clk 0:00:20]}  Ng6 {[%clk 0:00:25]} 29. f4 {[%clk 0:00:20]}  Bf8 {[%clk 0:00:23]} 30. Bc2 {[%clk 0:00:19]}  Kc5 {[%clk 0:00:22]} 31. e5 {[%clk 0:00:19]}  Ne7 {[%clk 0:00:21]} 32. Bxa5 {[%clk 0:00:18]}  Kd4 {[%clk 0:00:19]} 33. Bd2 {[%clk 0:00:17]}  b5 {[%clk 0:00:18]} 34. cxb5 {[%clk 0:00:17]}  cxb5 {[%clk 0:00:19]} 35. Kf3 {[%clk 0:00:16]}  Nd5 {[%clk 0:00:19]} 36. g4 {[%clk 0:00:15]}  b4 {[%clk 0:00:19]} 37. Be4 {[%clk 0:00:13]}  Nc3 {[%clk 0:00:19]} 38. Bxc3+ {[%clk 0:00:12]}  bxc3 {[%clk 0:00:19]} 39. a4 {[%clk 0:00:11]}  Bb4 {[%clk 0:00:18]} 40. e6 {[%clk 0:00:10]}  Ba5 {[%clk 0:00:17]} 41. e7 {[%clk 0:00:10]}  c2 {[%clk 0:00:11]} 42. Bxc2 {[%clk 0:00:10]}  Kc3 {[%clk 0:00:11]} 43. Be4 {[%clk 0:00:10]}  Kxb3 {[%clk 0:00:10]} 44. e8=Q {[%clk 0:00:11]} 1-0


[Site "https://www.chess.com"]

[Event "Titled Tuesday Blitz January 10 Early 2023"]
[White "Fisher_TheGalactic"]
[Black "Avalos Parra, Joao"]
[BlackFideId "3402541"]
[WhiteElo "2530"]
[BlackElo "2185"]
[Result "1-0"]
[Round "04"]
[TimeControl "180+2"]
[Date "2023.01.10"]
[WhiteClock "0:01:35"]
[BlackClock "0:00:47"]

1. Nf3 {[%clk 0:03:00]}  d5 {[%clk 0:02:59]} 2. g3 {[%clk 0:03:00]}  Nf6 {[%clk 0:02:44]} 3. Bg2 {[%clk 0:02:56]}  e6 {[%clk 0:02:44]} 4. O-O {[%clk 0:02:57]}  c5 {[%clk 0:02:44]} 5. d3 {[%clk 0:02:57]}  Nc6 {[%clk 0:02:43]} 6. Nbd2 {[%clk 0:02:57]}  Be7 {[%clk 0:02:43]} 7. e4 {[%clk 0:02:57]}  O-O {[%clk 0:02:43]} 8. exd5 {[%clk 0:02:57]}  exd5 {[%clk 0:02:41]} 9. Re1 {[%clk 0:02:57]}  Bg4 {[%clk 0:02:42]} 10. h3 {[%clk 0:02:57]}  Be6 {[%clk 0:02:41]} 11. Ng5 {[%clk 0:02:57]}  Bd7 {[%clk 0:02:40]} 12. Ngf3 {[%clk 0:02:57]}  h6 {[%clk 0:02:41]} 13. Nf1 {[%clk 0:02:57]}  Be6 {[%clk 0:02:41]} 14. Bf4 {[%clk 0:02:57]}  Qb6 {[%clk 0:02:39]} 15. Rb1 {[%clk 0:02:56]}  Rfe8 {[%clk 0:02:38]} 16. Ne5 {[%clk 0:02:50]}  Bf8 {[%clk 0:02:37]} 17. Nxc6 {[%clk 0:02:49]}  bxc6 {[%clk 0:02:35]} 18. Ne3 {[%clk 0:02:47]}  Nd7 {[%clk 0:02:31]} 19. g4 {[%clk 0:02:44]}  Qa6 {[%clk 0:02:26]} 20. a3 {[%clk 0:02:43]}  Rad8 {[%clk 0:02:14]} 21. Qd2 {[%clk 0:02:41]}  Nb6 {[%clk 0:02:12]} 22. Nf5 {[%clk 0:02:37]}  c4 {[%clk 0:02:07]} 23. d4 {[%clk 0:02:29]}  Qc8 {[%clk 0:02:04]} 24. Ng3 {[%clk 0:02:26]}  Bd6 {[%clk 0:02:03]} 25. Bxd6 {[%clk 0:02:25]}  Rxd6 {[%clk 0:02:04]} 26. c3 {[%clk 0:02:25]}  Rdd8 {[%clk 0:02:00]} 27. Re2 {[%clk 0:02:25]}  Bd7 {[%clk 0:01:59]} 28. Rbe1 {[%clk 0:02:25]}  Qc7 {[%clk 0:01:55]} 29. Nf5 {[%clk 0:02:22]}  Rxe2 {[%clk 0:01:53]} 30. Qxe2 {[%clk 0:02:22]}  Re8 {[%clk 0:01:50]} 31. Qxe8+ {[%clk 0:01:54]}  Bxe8 {[%clk 0:01:50]} 32. Rxe8+ {[%clk 0:01:54]}  Kh7 {[%clk 0:01:49]} 33. Re7 {[%clk 0:01:55]}  Qf4 {[%clk 0:01:44]} 34. Rxf7 {[%clk 0:01:55]}  Qc1+ {[%clk 0:01:44]} 35. Bf1 {[%clk 0:01:51]}  Qxb2 {[%clk 0:01:41]} 36. Rxg7+ {[%clk 0:01:49]}  Kh8 {[%clk 0:01:42]} 37. Rxa7 {[%clk 0:01:43]}  Qxc3 {[%clk 0:01:40]} 38. Nxh6 {[%clk 0:01:44]}  Qxd4 {[%clk 0:01:35]} 39. g5 {[%clk 0:01:42]}  c3 {[%clk 0:00:58]} 40. g6 {[%clk 0:01:39]}  c2 {[%clk 0:00:47]} 41. Rh7# {[%clk 0:01:35]} 1-0


[Site "https://www.chess.com"]

[Event "Titled Tuesday Blitz January 10 Early 2023"]
[White "Sala, Giulia"]
[Black "Goltseva, Ekaterina"]
[WhiteFideId "2840451"]
[BlackFideId "24173770"]
[WhiteElo "1998"]
[BlackElo "2283"]
[Result "0-1"]
[Round "04"]
[TimeControl "180+2"]
[Date "2023.01.10"]
[WhiteClock "0:00:20"]
[BlackClock "0:00:19"]

1. f4 {[%clk 0:03:00]}  d5 {[%clk 0:02:59]} 2. g3 {[%clk 0:02:59]}  Nf6 {[%clk 0:02:58]} 3. Nf3 {[%clk 0:02:59]}  g6 {[%clk 0:02:58]} 4. Bg2 {[%clk 0:02:58]}  Bg7 {[%clk 0:02:56]} 5. O-O {[%clk 0:02:58]}  O-O {[%clk 0:02:54]} 6. d3 {[%clk 0:02:55]}  c5 {[%clk 0:02:49]} 7. Qe1 {[%clk 0:02:55]}  Nc6 {[%clk 0:02:42]} 8. e4 {[%clk 0:02:55]}  dxe4 {[%clk 0:02:26]} 9. dxe4 {[%clk 0:02:56]}  e5 {[%clk 0:02:23]} 10. fxe5 {[%clk 0:02:51]}  Ng4 {[%clk 0:02:21]} 11. Nc3 {[%clk 0:02:45]}  Ncxe5 {[%clk 0:02:18]} 12. Bf4 {[%clk 0:02:43]}  Be6 {[%clk 0:02:03]} 13. Nxe5 {[%clk 0:02:42]}  Nxe5 {[%clk 0:02:01]} 14. Rd1 {[%clk 0:02:41]}  Qb6 {[%clk 0:01:57]} 15. b3 {[%clk 0:02:31]}  c4+ {[%clk 0:01:28]} 16. Kh1 {[%clk 0:02:29]}  Rfe8 {[%clk 0:01:12]} 17. Nd5 {[%clk 0:02:27]}  Bxd5 {[%clk 0:00:59]} 18. Rxd5 {[%clk 0:02:24]}  Rac8 {[%clk 0:00:53]} 19. Bh3 {[%clk 0:02:12]}  Rcd8 {[%clk 0:00:46]} 20. Qd1 {[%clk 0:01:58]}  Nc6 {[%clk 0:00:39]} 21. Rd7 {[%clk 0:01:45]}  Rxd7 {[%clk 0:00:36]} 22. Qxd7 {[%clk 0:01:07]}  Rd8 {[%clk 0:00:33]} 23. Bc7 {[%clk 0:01:01]}  Rxd7 {[%clk 0:00:29]} 24. Bxb6 {[%clk 0:01:00]}  Rd2 {[%clk 0:00:29]} 25. Be3 {[%clk 0:00:40]}  Rxc2 {[%clk 0:00:27]} 26. bxc4 {[%clk 0:00:38]}  Rxc4 {[%clk 0:00:26]} 27. Rb1 {[%clk 0:00:36]}  b6 {[%clk 0:00:25]} 28. Bg2 {[%clk 0:00:34]}  Ne5 {[%clk 0:00:22]} 29. Rd1 {[%clk 0:00:33]}  h6 {[%clk 0:00:21]} 30. h3 {[%clk 0:00:33]}  Rc2 {[%clk 0:00:21]} 31. Ra1 {[%clk 0:00:22]}  Nc4 {[%clk 0:00:20]} 32. Bf4 {[%clk 0:00:20]}  Bxa1 {[%clk 0:00:19]} 0-1


[Site "https://www.chess.com"]

[Event "Titled Tuesday Blitz January 10 Early 2023"]
[White "Gonzalez, Francisco Silva"]
[Black "Godzwon, Iwo"]
[WhiteFideId "1512285"]
[BlackFideId "21802483"]
[WhiteElo "2021"]
[BlackElo "2394"]
[Result "0-1"]
[Round "04"]
[TimeControl "180+2"]
[Date "2023.01.10"]
[WhiteClock "0:00:56"]
[BlackClock "0:01:04"]

1. d4 {[%clk 0:02:56]}  Nf6 {[%clk 0:03:00]} 2. c4 {[%clk 0:02:55]}  b6 {[%clk 0:03:00]} 3. Nc3 {[%clk 0:02:48]}  Bb7 {[%clk 0:02:59]} 4. a3 {[%clk 0:02:48]}  d5 {[%clk 0:02:57]} 5. cxd5 {[%clk 0:02:46]}  Nxd5 {[%clk 0:02:57]} 6. Qa4+ {[%clk 0:02:45]}  Qd7 {[%clk 0:02:48]} 7. Qxd7+ {[%clk 0:02:39]}  Nxd7 {[%clk 0:02:49]} 8. Nb5 {[%clk 0:02:39]}  a6 {[%clk 0:02:45]} 9. Nc3 {[%clk 0:02:36]}  e6 {[%clk 0:02:43]} 10. Nf3 {[%clk 0:02:34]}  Be7 {[%clk 0:02:39]} 11. Nxd5 {[%clk 0:02:27]}  Bxd5 {[%clk 0:02:39]} 12. Bf4 {[%clk 0:02:27]}  c5 {[%clk 0:02:39]} 13. e3 {[%clk 0:02:24]}  Bf6 {[%clk 0:02:36]} 14. Be5 {[%clk 0:02:19]}  Bxf3 {[%clk 0:02:09]} 15. Bxf6 {[%clk 0:02:16]}  Nxf6 {[%clk 0:02:10]} 16. gxf3 {[%clk 0:02:14]}  cxd4 {[%clk 0:02:10]} 17. exd4 {[%clk 0:02:13]}  Ke7 {[%clk 0:02:11]} 18. Rc1 {[%clk 0:02:07]}  Kd6 {[%clk 0:02:11]} 19. Kd2 {[%clk 0:02:07]}  b5 {[%clk 0:02:05]} 20. Rc3 {[%clk 0:02:00]}  Rhc8 {[%clk 0:02:02]} 21. Bd3 {[%clk 0:01:59]}  Nd5 {[%clk 0:01:51]} 22. Rcc1 {[%clk 0:01:50]}  Ne7 {[%clk 0:01:42]} 23. Be4 {[%clk 0:01:49]}  Rxc1 {[%clk 0:01:40]} 24. Rxc1 {[%clk 0:01:47]}  Rb8 {[%clk 0:01:40]} 25. b3 {[%clk 0:01:45]}  g5 {[%clk 0:01:37]} 26. Ke3 {[%clk 0:01:42]}  h6 {[%clk 0:01:34]} 27. f4 {[%clk 0:01:40]}  f5 {[%clk 0:01:26]} 28. Bf3 {[%clk 0:01:38]}  a5 {[%clk 0:01:24]} 29. h3 {[%clk 0:01:25]}  b4 {[%clk 0:01:21]} 30. a4 {[%clk 0:01:25]}  Rc8 {[%clk 0:01:21]} 31. Rxc8 {[%clk 0:01:21]}  Nxc8 {[%clk 0:01:22]} 32. fxg5 {[%clk 0:01:21]}  hxg5 {[%clk 0:01:22]} 33. Be2 {[%clk 0:01:14]}  Ne7 {[%clk 0:01:22]} 34. Bc4 {[%clk 0:01:14]}  Ng6 {[%clk 0:01:22]} 35. Kf3 {[%clk 0:01:14]}  e5 {[%clk 0:01:15]} 36. Ke3 {[%clk 0:01:14]}  Nf4 {[%clk 0:01:12]} 37. Bf1 {[%clk 0:01:08]}  Nd5+ {[%clk 0:01:05]} 38. Kd3 {[%clk 0:01:05]}  e4+ {[%clk 0:01:05]} 39. Kc4 {[%clk 0:01:00]}  Kc6 {[%clk 0:01:05]} 40. Bg2 {[%clk 0:00:56]}  Nb6# {[%clk 0:01:04]} 0-1


[Site "https://www.chess.com"]

[Event "Titled Tuesday Blitz January 10 Early 2023"]
[White "Tarasova, Viktoriya"]
[Black "Demin, Vladimir"]
[WhiteFideId "4175840"]
[BlackFideId "4167457"]
[WhiteElo "2226"]
[BlackElo "2430"]
[Result "1-0"]
[Round "04"]
[TimeControl "180+2"]
[Date "2023.01.10"]
[WhiteClock "0:00:16"]
[BlackClock "0:01:03"]

1. d4 {[%clk 0:02:56]}  Nf6 {[%clk 0:02:58]} 2. c4 {[%clk 0:02:55]}  e6 {[%clk 0:02:58]} 3. Nc3 {[%clk 0:02:55]}  d5 {[%clk 0:02:57]} 4. cxd5 {[%clk 0:02:54]}  exd5 {[%clk 0:02:58]} 5. Bg5 {[%clk 0:02:54]}  Be7 {[%clk 0:02:58]} 6. Qc2 {[%clk 0:02:54]}  O-O {[%clk 0:02:56]} 7. e3 {[%clk 0:02:54]}  c6 {[%clk 0:02:55]} 8. Bd3 {[%clk 0:02:53]}  Nbd7 {[%clk 0:02:55]} 9. Nge2 {[%clk 0:02:53]}  Re8 {[%clk 0:02:55]} 10. O-O {[%clk 0:02:53]}  Nf8 {[%clk 0:02:55]} 11. f3 {[%clk 0:02:53]}  g6 {[%clk 0:02:55]} 12. Rae1 {[%clk 0:02:51]}  Ne6 {[%clk 0:02:55]} 13. Bh4 {[%clk 0:02:51]}  b5 {[%clk 0:02:55]} 14. Bf2 {[%clk 0:02:46]}  Bb7 {[%clk 0:02:53]} 15. h3 {[%clk 0:02:45]}  a6 {[%clk 0:02:49]} 16. e4 {[%clk 0:02:45]}  c5 {[%clk 0:02:45]} 17. e5 {[%clk 0:02:09]}  Nd7 {[%clk 0:02:29]} 18. Qd2 {[%clk 0:02:02]}  cxd4 {[%clk 0:02:27]} 19. Nxd4 {[%clk 0:01:59]}  Bc5 {[%clk 0:02:20]} 20. Nxe6 {[%clk 0:01:46]}  Rxe6 {[%clk 0:02:15]} 21. f4 {[%clk 0:01:46]}  b4 {[%clk 0:01:53]} 22. Na4 {[%clk 0:01:37]}  Bxf2+ {[%clk 0:01:52]} 23. Qxf2 {[%clk 0:01:37]}  Qa5 {[%clk 0:01:52]} 24. b3 {[%clk 0:01:37]}  Rf8 {[%clk 0:01:51]} 25. Qd4 {[%clk 0:01:34]}  f6 {[%clk 0:01:42]} 26. exf6 {[%clk 0:01:30]}  Rxe1 {[%clk 0:01:41]} 27. Rxe1 {[%clk 0:01:30]}  Nxf6 {[%clk 0:01:40]} 28. Re7 {[%clk 0:01:29]}  Bc6 {[%clk 0:01:39]} 29. Nc5 {[%clk 0:00:26]}  Qxa2 {[%clk 0:01:38]} 30. Ne6 {[%clk 0:00:26]}  Rf7 {[%clk 0:01:35]} 31. Rxf7 {[%clk 0:00:26]}  Kxf7 {[%clk 0:01:36]} 32. Nd8+ {[%clk 0:00:27]}  Kg7 {[%clk 0:01:35]} 33. Nxc6 {[%clk 0:00:27]}  Qxb3 {[%clk 0:01:34]} 34. Ne5 {[%clk 0:00:23]}  Kf8 {[%clk 0:01:29]} 35. Qc5+ {[%clk 0:00:21]}  Ke8 {[%clk 0:01:26]} 36. Qc6+ {[%clk 0:00:21]}  Ke7 {[%clk 0:01:25]} 37. Qc7+ {[%clk 0:00:20]}  Ke8 {[%clk 0:01:20]} 38. Bxa6 {[%clk 0:00:20]}  d4 {[%clk 0:01:05]} 39. Bb5+ {[%clk 0:00:19]}  Kf8 {[%clk 0:01:06]} 40. Qd8+ {[%clk 0:00:15]}  Kg7 {[%clk 0:01:05]} 41. Qe7+ {[%clk 0:00:16]}  Kh6 {[%clk 0:01:06]} 42. Qxf6 {[%clk 0:00:16]}  Qe3+ {[%clk 0:01:03]} 43. Kh2 {[%clk 0:00:16]} 1-0


[Site "https://www.chess.com"]

[Event "Titled Tuesday Blitz January 10 Early 2023"]
[White "Djokic, Mihailo"]
[Black "Buscar, Michael"]
[WhiteFideId "976440"]
[BlackFideId "2603616"]
[WhiteElo "2192"]
[BlackElo "2041"]
[Result "1-0"]
[Round "04"]
[TimeControl "180+2"]
[Date "2023.01.10"]
[WhiteClock "0:00:20"]
[BlackClock "0:00:06"]

1. e4 {[%clk 0:03:00]}  c5 {[%clk 0:02:59]} 2. Nf3 {[%clk 0:03:00]}  Nc6 {[%clk 0:02:58]} 3. d4 {[%clk 0:03:01]}  cxd4 {[%clk 0:02:59]} 4. Nxd4 {[%clk 0:03:01]}  Nf6 {[%clk 0:03:00]} 5. Nc3 {[%clk 0:03:01]}  e5 {[%clk 0:03:00]} 6. Ndb5 {[%clk 0:03:01]}  h6 {[%clk 0:03:01]} 7. Nd6+ {[%clk 0:02:59]}  Bxd6 {[%clk 0:03:00]} 8. Qxd6 {[%clk 0:02:59]}  Qe7 {[%clk 0:03:01]} 9. Qxe7+ {[%clk 0:02:59]}  Kxe7 {[%clk 0:03:01]} 10. Be3 {[%clk 0:02:59]}  d6 {[%clk 0:03:00]} 11. O-O-O {[%clk 0:02:58]}  Be6 {[%clk 0:03:00]} 12. f3 {[%clk 0:02:56]}  Rhd8 {[%clk 0:03:01]} 13. Be2 {[%clk 0:02:55]}  d5 {[%clk 0:03:00]} 14. exd5 {[%clk 0:02:55]}  Nxd5 {[%clk 0:03:00]} 15. Nxd5+ {[%clk 0:02:56]}  Rxd5 {[%clk 0:02:59]} 16. Rxd5 {[%clk 0:02:56]}  Bxd5 {[%clk 0:02:59]} 17. Rd1 {[%clk 0:02:56]}  Rd8 {[%clk 0:02:52]} 18. b3 {[%clk 0:02:46]}  Be6 {[%clk 0:02:49]} 19. Rxd8 {[%clk 0:02:45]}  Kxd8 {[%clk 0:02:49]} 20. Kb2 {[%clk 0:02:45]}  Kc7 {[%clk 0:02:41]} 21. c4 {[%clk 0:02:34]}  b6 {[%clk 0:02:23]} 22. Kc3 {[%clk 0:02:33]}  Ne7 {[%clk 0:02:16]} 23. g4 {[%clk 0:02:30]}  f6 {[%clk 0:02:10]} 24. Bd3 {[%clk 0:02:29]}  Bf7 {[%clk 0:02:06]} 25. a4 {[%clk 0:02:28]}  Bg6 {[%clk 0:02:05]} 26. Bxg6 {[%clk 0:02:22]}  Nxg6 {[%clk 0:02:05]} 27. c5 {[%clk 0:02:22]}  Nh4 {[%clk 0:01:57]} 28. cxb6+ {[%clk 0:02:11]}  axb6 {[%clk 0:01:58]} 29. Kc4 {[%clk 0:02:01]}  Kc6 {[%clk 0:01:50]} 30. f4 {[%clk 0:02:00]}  Ng2 {[%clk 0:01:47]} 31. Bd2 {[%clk 0:01:49]}  exf4 {[%clk 0:01:38]} 32. Kd4 {[%clk 0:01:33]}  f3 {[%clk 0:01:28]} 33. Kd3 {[%clk 0:01:32]}  Kd5 {[%clk 0:01:10]} 34. b4 {[%clk 0:01:31]}  Kc6 {[%clk 0:01:06]} 35. h3 {[%clk 0:00:35]}  Kd5 {[%clk 0:01:03]} 36. Be3 {[%clk 0:00:32]}  Kc6 {[%clk 0:00:41]} 37. Ke4 {[%clk 0:00:27]}  Ne1 {[%clk 0:00:33]} 38. b5+ {[%clk 0:00:25]}  Kc7 {[%clk 0:00:26]} 39. Bf2 {[%clk 0:00:20]}  Nc2 {[%clk 0:00:13]} 40. Kxf3 {[%clk 0:00:21]}  Nb4 {[%clk 0:00:07]} 41. Ke4 {[%clk 0:00:21]}  g6 {[%clk 0:00:06]} 42. h4 {[%clk 0:00:20]} 1-0


[Site "https://www.chess.com"]

[Event "Titled Tuesday Blitz January 10 Early 2023"]
[White "Jakubowski, Krzysztof"]
[Black "Khalafova, Narmin"]
[WhiteFideId "1112848"]
[BlackFideId "13402625"]
[WhiteElo "2486"]
[BlackElo "2246"]
[Result "1-0"]
[Round "04"]
[TimeControl "180+2"]
[Date "2023.01.10"]
[WhiteClock "0:00:15"]
[BlackClock "0:00:11"]

1. c4 {[%clk 0:02:56]}  e5 {[%clk 0:02:59]} 2. Nc3 {[%clk 0:02:56]}  Nf6 {[%clk 0:02:54]} 3. e3 {[%clk 0:02:52]}  Bb4 {[%clk 0:02:47]} 4. Nge2 {[%clk 0:02:51]}  O-O {[%clk 0:02:46]} 5. a3 {[%clk 0:02:51]}  Be7 {[%clk 0:02:44]} 6. d4 {[%clk 0:02:50]}  d6 {[%clk 0:02:42]} 7. g3 {[%clk 0:02:30]}  h5 {[%clk 0:02:31]} 8. h3 {[%clk 0:02:28]}  c6 {[%clk 0:02:16]} 9. Bg2 {[%clk 0:02:26]}  Be6 {[%clk 0:02:07]} 10. b3 {[%clk 0:02:13]}  Qc8 {[%clk 0:02:00]} 11. Bb2 {[%clk 0:02:13]}  Na6 {[%clk 0:01:54]} 12. Rc1 {[%clk 0:02:12]}  Nc7 {[%clk 0:01:52]} 13. f4 {[%clk 0:02:01]}  exf4 {[%clk 0:01:46]} 14. Nxf4 {[%clk 0:02:01]}  h4 {[%clk 0:01:37]} 15. gxh4 {[%clk 0:01:59]}  Bf5 {[%clk 0:01:31]} 16. e4 {[%clk 0:01:50]}  Bh7 {[%clk 0:01:30]} 17. O-O {[%clk 0:01:48]}  Ne6 {[%clk 0:01:27]} 18. Qd2 {[%clk 0:01:32]}  Nxf4 {[%clk 0:00:57]} 19. Qxf4 {[%clk 0:01:28]}  Nh5 {[%clk 0:00:57]} 20. Qf3 {[%clk 0:01:27]}  Bg6 {[%clk 0:00:52]} 21. Nd1 {[%clk 0:01:20]}  Bxh4 {[%clk 0:00:49]} 22. Ne3 {[%clk 0:01:20]}  Ng3 {[%clk 0:00:43]} 23. d5 {[%clk 0:01:11]}  Bxe4 {[%clk 0:00:32]} 24. Qf2 {[%clk 0:00:56]}  Bxg2 {[%clk 0:00:31]} 25. Qxg2 {[%clk 0:00:54]}  g6 {[%clk 0:00:28]} 26. Rf4 {[%clk 0:00:49]}  Qd8 {[%clk 0:00:14]} 27. dxc6 {[%clk 0:00:28]}  bxc6 {[%clk 0:00:14]} 28. Kh2 {[%clk 0:00:18]}  Qg5 {[%clk 0:00:13]} 29. Rxh4 {[%clk 0:00:16]}  Qxe3 {[%clk 0:00:11]} 30. Rh8# {[%clk 0:00:15]} 1-0


[Site "https://www.chess.com"]